[Event "Chinese League Div-A Rapid 2022"]
[Site "Fuling,Chongqing"]
[Date "2022.09.11"]
[Round "5.5"]
[White "Li, Xueyi"]
[Black "Ning, Kaiyu"]
[Result "0-1"]
[ECO "E11"]
[WhiteElo "2280"]
[BlackElo "2374"]
[Annotator "RC"]
[PlyCount "114"]
[EventDate "2022.09.07"]
[EventType "team-tourn"]
[EventCountry "CHN"]
[SourceTitle "playchess.com"]
[Source "ChessBase"]
[SourceQuality "1"]
[TimeControl "1500+10"]

1. d4 {[%emt 0:00:02]} d5 {[%emt 0:00:01]} 2. Nf3 {[%emt 0:00:02]} Nf6 {[%emt 0:00:02]} 3. c4 {[%emt 0:00:02]} e6 {[%emt 0:00:05]} 4. g3 {[%emt 0:00:01]} Bb4+ {[%emt 0:00:18]} 5. Bd2 {[%emt 0:00:10]} a5 {[%emt 0:00:02]} 6. Bg2 {[%emt 0:00:02]} O-O {[%emt 0:00:05]} 7. O-O {[%emt 0:00:31]} dxc4 {[%emt 0:00:04]} 8. Qc2 {[%emt 0:00:06]} Bxd2 {[%emt 0:01:06]} 9. Nbxd2 {[%emt 0:00:20]} b5 {[%emt 0:00:09]} 10. a4 {[%emt 0:00:30]} c6 {[%emt 0:00:30]} 11. e4 {[%emt 0:00:39]} Na6 {[%emt 0:01:04]} 12. e5 {[%emt 0:01:44]} Nb4 {[%emt 0:00:02]} 13. Qb1 {[%emt 0:00:24]} Nfd5 {[%emt 0:00:03]} 14. Ne4 {[%emt 0:00:02]} h6 {[%emt 0:00:11]} 15. h4 {[%emt 0:01:15]} Ba6 {[%emt 0:00:16]} 16. Rd1 {[%emt 0:00:42]} Nd3 {[%emt 0:01:35]} 17. Bf1 {[%emt 0:00:53]} N5b4 {[%emt 0:00:22]} 18. Nd6 {[%emt 0:02:06]} Qb6 {[%emt 0:07:16]} 19. Rd2 {[%emt 0:00:57]} Rad8 {[%emt 0:02:15]} 20. Qd1 {[%emt 0:00:24]} Ra8 {[%emt 0:02:03]} 21. Qe2 {[%emt 0:00:28]} bxa4 {[%emt 0:00:30]} 22. Qe4 {[%emt 0:02:08]} c5 {[%emt 0:00:25]} 23. Bh3 {[%emt 0:03:05]} Rad8 {[%emt 0:04:55]} 24. Bg2 {[%emt 0:01:38]} f5 {[%emt 0:01:15]} 25. Qe3 {[%emt 0:00:14]} Nd5 {[%emt 0:00:40]} 26. dxc5 {[%emt 0:00:52]} Nxc5 {[%emt 0:00:17]} 27. Qe1 {[%emt 0:01:29]} Nb3 {[%emt 0:00:42]} 28. Rad1 {[%emt 0:00:15]} Nxd2 {[%emt 0:00:13]} 29. Rxd2 {[%emt 0:00:15]} Nb4 {[%emt 0:01:05]} 30. Nd4 {[%emt 0:01:05]} Nd3 {[%emt 0:00:03]} 31. Qe3 {[%emt 0:00:01]} f4 {[%emt 0:00:42]} 32. gxf4 {[%emt 0:00:09]} Nxf4 {[%emt 0:00:12]} 33. Be4 {[%emt 0:00:36]} Qc7 {[%emt 0:01:36]} 34. Nc6 {[%emt 0:00:42]} Ra8 {[%emt 0:00:06]} 35. Qc5 {[%emt 0:00:19]} Nd3 {[%emt 0:00:11]} 36. Qe3 {[%emt 0:03:07]} Kh8 {[%emt 0:00:03]} 37. Qh3 {[%emt 0:01:43]} Nf4 {[%emt 0:00:27]} 38. Qg4 {[%emt 0:00:01]} Bb7 {[%emt 0:00:13]} 39. Nxb7 {[%emt 0:00:39]} Qxb7 {[%emt 0:00:01]} 40. Qd1 {[%emt 0:00:02]} Qb3 {[%emt 0:00:12]} 41. f3 {[%emt 0:01:17]} Qxd1+ {[%emt 0:00:22]} 42. Rxd1 {[%emt 0:00:06]} Ra6 {[%emt 0:00:03]} 43. Ra1 {[%emt 0:00:15]} Rc8 {[%emt 0:00:09]} 44. Ne7 {[%emt 0:00:18]} Re8 {[%emt 0:00:12]} 45. Nc6 {[%emt 0:00:11]} Rc8 {[%emt 0:00:08]} 46. Ne7 {[%emt 0:00:01]} Rc7 {[%emt 0:00:01]} 47. Rd1 {[%emt 0:00:16]} Nd3 {[%emt 0:00:16]} 48. Ng6+ {[%emt 0:00:02]} Kg8 {[%emt 0:00:02]} 49. Bxd3 {[%emt 0:00:04]} cxd3 {[%emt 0:00:03]} 50. Rxd3 {[%emt 0:00:01]} h5 {[%emt 0:00:21]} 51. Rd8+ {[%emt 0:00:21]} Kf7 {[%emt 0:00:15]} 52. Nh8+ {[%emt 0:00:11]} Ke7 {[%emt 0:00:01]} 53. Rb8 {[%emt 0:00:01]} Kd7 {[%emt 0:00:10]} 54. Nf7 {[%emt 0:00:06]} Kc6 {[%emt 0:00:14]} 55. Nd6 {[%emt 0:00:12]} Rb6 {[%emt 0:00:16]} 56. Ra8 {[%emt 0:00:01]} Rxb2 {[%emt 0:00:11]} 57. Rxa5 {[%emt 0:00:37]} Kb6 {[%emt 0:00:04]} 0-1

[Event "Chinese League Div-A Rapid 2022"]
[Site "Fuling,Chongqing"]
[Date "2022.09.11"]
[Round "5.6"]
[White "Wei, Yi"]
[Black "Li, Chao b"]
[Result "1/2-1/2"]
[ECO "D94"]
[WhiteElo "2727"]
[BlackElo "2679"]
[Annotator "TA"]
[PlyCount "46"]
[EventDate "2022.09.07"]
[EventType "team-tourn"]
[EventCountry "CHN"]
[SourceTitle "playchess.com"]
[Source "ChessBase"]
[SourceQuality "1"]
[TimeControl "1500+10"]

{[%evp 13,46,23,37,35,29,14,28,27,30,8,37,16,27,-2,59,34,36,24,22,24,27,11,62,67,103,111,104,10,41,11,4,9,14,-46,-52]} 1. d4 {[%emt 0:00:04]} d5 {[%emt 0:00:10]} 2. c4 {[%emt 0:00:15]} c6 {[%emt 0:00:02]} 3. e3 {[%emt 0:00:12]} Nf6 {[%emt 0:00:12]} 4. Nc3 {[%emt 0:00:02]} g6 {[%emt 0:00:08]} 5. Nf3 {[%emt 0:00:02]} Bg7 {[%emt 0:00:04]} 6. Be2 {[%emt 0:00:02]} O-O {[%emt 0:00:06]} 7. O-O {[%emt 0:00:02]} b6 {[%emt 0:00:06] Recently 7...a6 got a lot of attention.} 8. a4 {[%emt 0:00:23][%cal Oa4a5] D94: Grünfeld: 4 Nf3 Bg7 5 e3.} Ne4 {[%emt 0:00:03]} 9. Qb3 {[%emt 0:01:37]} Nxc3 {[%emt 0:00:13]} 10. bxc3 {[%emt 0:00:11] White has an edge.} Ba6 {[%emt 0:00:07]} 11. Ba3 {[%emt 0:00:51]} Re8 {[%emt 0:01:34][%cal Oc6c5]} 12. Ra2 {[%emt 0:01:27]} e6 {[%emt 0:01:04] [#]} 13. Rc1 $146 {[%emt 0:00:09]} ({Predecessor:} 13. cxd5 cxd5 14. Bb5 Bxb5 15. axb5 Qc7 16. Rc1 a6 17. c4 dxc4 18. Rxc4 Qb7 19. Rac2 axb5 20. Qxb5 {1-0 (34) Christenson,F (2303)-Johannessen,S (2317) Oslo 2004}) 13... Bb7 {[%emt 0:02:23]} (13... Bxc4 $11 14. Bxc4 dxc4 15. Qxc4 Qc7) 14. cxd5 {[%emt 0:11:23]} (14. Nd2 $5 {[%cal Ra4a5]}) 14... cxd5 {[%emt 0:01:33]} 15. c4 {[%emt 0:00:06]} Nc6 {[%emt 0:05:42]} 16. c5 {[%emt 0:00:02]} Na5 {[%emt 0:00:01]} 17. Qb1 {[%emt 0:01:41]} Nc4 {[%emt 0:00:04]} (17... Bc6 $11) 18. Nd2 $1 $14 {[%emt 0:00:45]} ({Much weaker is} 18. Bxc4 dxc4 19. Rd2 (19. Rxc4 Bd5 $15) 19... Rb8 $15) 18... e5 {[%emt 0:03:09]} 19. Nxc4 {[%emt 0:00:46]} dxc4 {[%emt 0:00:02] [#]} 20. Bxc4 {[%emt 0:01:48]} (20. dxe5 $1 $16 {Black must now prevent f4.} c3 21. f4 (21. c6 Bxc6 22. Rxc3 Qd7 $16)) 20... exd4 $11 {[%emt 0:00:44]} 21. Qb3 {[%emt 0:00:03]} (21. c6 $5 Bxc6 {[#]} 22. Bxf7+ $1 Kxf7 23. Rxc6 $11) 21... Qd7 {[%emt 0:01:47]} 22. cxb6 {[%emt 0:01:59]} axb6 {[%emt 0:01:11]} 23. Qxb6 {[%emt 0:01:15]} ({Better is} 23. Bb5 $11 Qe6 24. Qxe6 Rxe6 25. exd4) 23... Rxa4 {[%emt 0:04:29] Weighted Error Value: White=0.22 (precise) /Black=0.19 (very precise)} 1/2-1/2

[Event "Chinese League Div-A Rapid 2022"]
[Site "Fuling,Chongqing"]
[Date "2022.09.11"]
[Round "5.7"]
[White "Xu, Jun"]
[Black "Li, Haoyu"]
[Result "1-0"]
[ECO "D32"]
[WhiteElo "2474"]
[BlackElo "2369"]
[Annotator "TA"]
[PlyCount "69"]
[EventDate "2022.09.07"]
[EventType "team-tourn"]
[EventCountry "CHN"]
[SourceTitle "playchess.com"]
[Source "ChessBase"]
[SourceQuality "1"]
[TimeControl "1500+10"]

{[%evp 21,69,3,20,0,0,0,20,6,47,45,87,18,10,14,52,50,68,65,235,157,233,68,73,68,266,70,508,516,510,503,503,478,449,162,573,551,562,556,802,786,893,894,857,765,905,859,970,957,910,838]} 1. d4 {[%emt 0:00:02]} Nf6 {[%emt 0:00:03]} 2. Nf3 {[%emt 0:00:04]} e6 {[%emt 0:00:03]} 3. c4 {[%emt 0:00:03]} c5 {[%emt 0:00:04]} 4. Nc3 {[%emt 0:00:22]} d5 {[%emt 0:01:06]} 5. e3 {[%emt 0:00:31]} a6 {[%emt 0:00:11]} 6. cxd5 {[%emt 0:00:54]} exd5 {[%emt 0:00:09]} 7. Be2 {[%emt 0:00:10]} Nc6 {[%emt 0:00:18]} 8. O-O {[%emt 0:00:02]} Be7 {[%emt 0:00:22]} 9. dxc5 {[%emt 0:00:03]} Bxc5 {[%emt 0:00:02]} 10. b3 {[%emt 0:00:05]} O-O {[%emt 0:00:51]} 11. Bb2 {[%emt 0:00:14]} Ba7 {[%emt 0:00:22]} 12. Na4 {[%emt 0:00:20] D32: Tarrasch Defence: Sidelines and lines without g3.} Ne4 {[%emt 0:00:33]} 13. Rc1 {[%emt 0:00:03]} Qd6 {[%emt 0:01:10] Prevents Ne5.} 14. Nd4 {[%emt 0:06:36] The position is equal.} Bb8 {[%emt 0:06:30][%csl Gb8][%cal Rd6h2]} 15. g3 {[%emt 0:00:33] aiming for Nb6.} Ne5 {[%emt 0:01:25] [#]} 16. Nc3 $146 {[%emt 0:02:14]} (16. Rxc8 $1 $16 Rxc8 17. f4) ({Predecessor:} 16. f4 Ng6 17. Qc2 Ba7 18. Qc7 Qxc7 19. Rxc7 b5 {½-½ (19) Farago,I (2510)-Bezold,M (2395) Budapest 1993}) 16... Bh3 $11 {[%emt 0:00:30] Inhibits Nf5.} 17. Re1 {[%emt 0:03:46]} Rd8 {[%emt 0:01:12]} 18. Qc2 {[%emt 0:04:48]} Nf6 {[%emt 0:02:43]} 19. Nf3 $1 {[%emt 0:00:43]} Nfg4 $2 {[%emt 0:03:30]} ({Black should try} 19... h6 $14) 20. Nxe5 {[%emt 0:01:07]} (20. Ng5 Qh6 21. Qf5 g6 $15) 20... Qxe5 {[%emt 0:00:49]} (20... Nxe5 $16 21. Red1 Be6 22. Nxd5 Bxd5) 21. Rcd1 $2 {[%emt 0:01:02]} (21. Red1 $18 Nxe3 22. fxe3 Qxe3+ 23. Kh1) 21... Nxe3 $14 {[%emt 0:02:14]} 22. fxe3 {[%emt 0:01:05]} Qxe3+ {[%emt 0:00:02]} 23. Kh1 {[%emt 0:00:00]} Bxg3 $2 {[%emt 0:02:43][%mdl 8192]} 24. Rg1 $18 {[%emt 0:01:48]} Be5 {[%emt 0:00:53] Hoping for ...Qf2.} 25. Nxd5 {[%emt 0:00:44]} Rxd5 {[%emt 0:00:11]} 26. Rxd5 {[%emt 0:00:15]} Bxb2 {[%emt 0:00:10]} 27. Rd3 $2 $40 {[%emt 0:00:26][%mdl 128] White wants a kill.} ({Stronger than} 27. Rh5 {[#]} Bd7 $1 28. Rg3 (28. Qxb2 $2 Bc6+ 29. Rg2 g6 $19) (28. Qxh7+ Kf8 $17) 28... Bc6+ 29. Qxc6 Qxg3 30. hxg3 bxc6 $15) (27. Rg3 Qe6 28. Qxb2 $1) 27... Qe4+ {[%emt 0:01:02]} (27... Bf5 {is a better chance.}) 28. Bf3 {[%emt 0:00:08][%mdl 64] Skewer, Deflection. White is clearly winning.} Qe5 {[%emt 0:00:11]} 29. Bxb7 {[%emt 0:00:24][%mdl 64] Discovered Attack} Bf5 {[%emt 0:00:25]} 30. Bxa8 {[%emt 0:00:11] Intending Rd8+ and mate.} h5 {[%emt 0:00:12]} 31. Rd8+ {[%emt 0:00:32]} Kh7 {[%emt 0:00:00]} 32. Qd2 {[%emt 0:00:11]} Ba3 {[%emt 0:00:19]} 33. Bf3 {[%emt 0:00:08]} Be7 {[%emt 0:00:13]} 34. Rd5 {[%emt 0:00:05]} Qf6 {[%emt 0:00:03]} 35. Qf4 {[%emt 0:00:15] Weighted Error Value: White=0.50/Black=0.90} 1-0

[Event "Chinese League Div-A Rapid 2022"]
[Site "Fuling,Chongqing"]
[Date "2022.09.11"]
[Round "5.8"]
[White "Chen, Qi b"]
[Black "Zhang, Di"]
[Result "1/2-1/2"]
[ECO "B45"]
[WhiteElo "2485"]
[BlackElo "2108"]
[Annotator "TA"]
[PlyCount "69"]
[EventDate "2022.09.07"]
[EventType "team-tourn"]
[EventCountry "CHN"]
[SourceTitle "playchess.com"]
[Source "ChessBase"]
[SourceQuality "1"]
[TimeControl "1500+10"]

{[%evp 11,69,10,17,14,5,14,14,9,19,17,38,43,40,0,39,16,25,31,33,31,79,-8,0,0,71,0,0,0,0,0,0,0,0,0,0,0,0,0,0,0,0,0,0,0,0,0,0,0,0,0,0,0,0,0,0,0,0,0,0,0]} 1. e4 {[%emt 0:00:02]} c5 {[%emt 0:00:04]} 2. Nc3 {[%emt 0:00:03]} e6 {[%emt 0:01:20]} 3. Nf3 {[%emt 0:00:32]} Nc6 {[%emt 0:00:06]} 4. d4 {[%emt 0:00:37]} cxd4 {[%emt 0:00:02]} 5. Nxd4 {[%emt 0:00:01]} Nf6 {[%emt 0:00:05]} 6. a3 {[%emt 0:00:03]} d5 {[%emt 0:01:12]} 7. exd5 {[%emt 0:00:39] B45: Sicilian Four Knights.} (7. Bb5 {keeps more tension.} Bd7 8. exd5 exd5 9. O-O) 7... Nxd5 {[%emt 0:00:05]} (7... exd5 {seems wilder.} 8. Bb5 Bd7 9. O-O Be7) 8. Nxd5 {[%emt 0:01:07]} Qxd5 {[%emt 0:00:17]} 9. Nxc6 {[%emt 0:00:04]} Qxc6 {[%emt 0:01:33]} 10. Be3 {[%emt 0:00:40]} Bc5 {[%emt 0:01:09] Prevents Qd4.} 11. Qh5 {[%emt 0:02:46]} b6 {[%emt 0:01:22] [#]} (11... Bxe3 $2 12. Bb5 Bb6 13. Bxc6+ $18) 12. O-O-O $146 {[%emt 0:04:33] Bd4 is the strong threat.} ({Predecessor:} 12. b4 g6 13. Qe5 f6 14. Qxf6 Rf8 15. Qc3 Bb7 16. bxc5 O-O-O 17. Bd3 Qxg2 18. O-O-O {1-0 (59) Smieszek,W (2107)-Janeczko,J (1976) Warsaw 2021}) 12... O-O {[%emt 0:03:17]} 13. Bd3 {[%emt 0:00:40][%csl Gd3][%cal Rh5h7]} Bxe3+ {[%emt 0:00:47]} 14. fxe3 {[%emt 0:00:01][%csl Gd3][%cal Rh5h7]} g6 {[%emt 0:00:01]} 15. Qh6 {[%emt 0:03:14] And now h4 would win.} e5 {[%emt 0:00:33] [#]} (15... a5 $14) 16. e4 {[%emt 0:00:13] White is more active.} (16. h4 $1 $16 {[%cal Rh4h5]}) 16... Bg4 $11 {[%emt 0:00:56]} 17. Rd2 {[%emt 0:00:23][%cal Bd1d2,Bd2f2,Bf2f3,Bf3f7][%mdl 32]} Rac8 {[%emt 0:03:58] [#]} (17... Qc7 $11) 18. Kb1 {[%emt 0:00:09]} (18. Qg5 $1 $16 {[%cal Rg5g4]} Qe6 19. Kb1) 18... Be6 {[%emt 0:01:22] The position is equal.} 19. h4 {[%emt 0:00:57][%cal Bh2h4,Bh4h5][%mdl 32]} Bc4 {[%emt 0:02:12]} 20. h5 {[%emt 0:01:10] Hoping for Bxc4.} Bxd3 {[%emt 0:01:17]} 21. cxd3 {[%emt 0:00:03]} Rc7 {[%emt 0:00:56]} 22. Rf2 {[%emt 0:01:22]} Qd6 {[%emt 0:01:03]} 23. Rf3 {[%emt 0:01:09]} Rfc8 {[%emt 0:01:44]} 24. hxg6 {[%emt 0:00:57]} fxg6 {[%emt 0:00:09]} 25. Rhf1 {[%emt 0:01:12]} Rc2 {[%emt 0:00:35]} 26. Rf7 {[%emt 0:01:39][%csl Gf7][%cal Rh6h7]} Rxb2+ $1 {[%emt 0:00:18]} 27. Kxb2 {[%emt 0:00:02][%csl Gf7][%cal Rh6h7]} Qd4+ {[%emt 0:00:00]} 28. Kb1 {[%emt 0:00:02][%csl Gf7][%cal Rh6h7]} Qxd3+ {[%emt 0:00:01]} 29. Ka1 {[%emt 0:00:02][%csl Gf7][%cal Rh6h7]} Qxa3+ {[%emt 0:00:34]} 30. Kb1 {[%emt 0:00:01][%csl Gf7][%cal Rh6h7]} Qb3+ {[%emt 0:00:40]} 31. Ka1 {[%emt 0:00:01][%csl Gf7][%cal Rh6h7]} Qa4+ {[%emt 0:00:03]} 32. Kb1 {[%emt 0:00:06][%csl Gf7][%cal Rh6h7]} Qxe4+ {[%emt 0:00:23]} 33. Ka1 $1 {[%emt 0:00:01][%csl Gf7][%cal Rh6h7]} (33. Kb2 {leads to mate.} Rc2+ 34. Ka3 Qd3+ 35. Kb4 Qc4+ 36. Ka3 Ra2#) 33... Qa4+ {[%emt 0:00:30]} 34. Kb1 {[%emt 0:00:01][%csl Gf7][%cal Rh6h7] Really sharp!} Qb4+ {[%emt 0:00:02]} 35. Ka1 {[%emt 0:00:02] Weighted Error Value: White=0.11 (very precise) /Black=0.10 (very precise)} 1/2-1/2

[Event "Chinese League Div-A Rapid 2022"]
[Site "Fuling,Chongqing"]
[Date "2022.09.11"]
[Round "5.9"]
[White "Wang, Yu A."]
[Black "Zhang, Xiao"]
[Result "1/2-1/2"]
[ECO "B18"]
[WhiteElo "2271"]
[BlackElo "2073"]
[Annotator "RC"]
[PlyCount "85"]
[EventDate "2022.09.07"]
[EventType "team-tourn"]
[EventCountry "CHN"]
[SourceTitle "playchess.com"]
[Source "ChessBase"]
[SourceQuality "1"]
[TimeControl "1500+10"]

1. e4 {[%emt 0:00:01]} c6 {[%emt 0:00:02]} 2. d4 {[%emt 0:00:01]} d5 {[%emt 0:00:02]} 3. Nc3 {[%emt 0:00:01]} dxe4 {[%emt 0:00:07]} 4. Nxe4 {[%emt 0:00:01]} Bf5 {[%emt 0:00:04]} 5. Ng3 {[%emt 0:00:02]} Bg6 {[%emt 0:00:01]} 6. Nh3 {[%emt 0:00:01]} Nd7 {[%emt 0:00:07]} 7. Nf4 {[%emt 0:00:08]} Ngf6 {[%emt 0:00:04]} 8. Be2 {[%emt 0:00:32]} e5 {[%emt 0:02:13]} 9. dxe5 {[%emt 0:00:04]} Nxe5 {[%emt 0:00:09]} 10. Qxd8+ {[%emt 0:00:03]} Rxd8 {[%emt 0:00:07]} 11. Nxg6 {[%emt 0:00:02]} hxg6 {[%emt 0:00:08]} 12. Be3 {[%emt 0:05:47]} b6 {[%emt 0:02:09]} 13. h3 {[%emt 0:01:23]} Bd6 {[%emt 0:01:04]} 14. O-O-O {[%emt 0:00:31]} Nd5 {[%emt 0:03:44]} 15. Bd2 {[%emt 0:00:13]} O-O {[%emt 0:02:03]} 16. h4 {[%emt 0:03:08]} Rfe8 {[%emt 0:01:34]} 17. Bg5 {[%emt 0:03:12]} f6 {[%emt 0:01:40]} 18. Bd2 {[%emt 0:00:06]} Kf7 {[%emt 0:00:43]} 19. h5 {[%emt 0:04:02]} gxh5 {[%emt 0:00:41]} 20. Bxh5+ {[%emt 0:00:03]} g6 {[%emt 0:00:11]} 21. Be2 {[%emt 0:00:02]} Rh8 {[%emt 0:00:35]} 22. Rxh8 {[%emt 0:01:09]} Rxh8 {[%emt 0:00:12]} 23. c4 {[%emt 0:00:10]} Ne7 {[%emt 0:02:24]} 24. Bc3 {[%emt 0:03:21]} Bc7 {[%emt 0:01:49]} 25. Ne4 {[%emt 0:01:12]} Rh4 {[%emt 0:01:49]} 26. f3 {[%emt 0:01:10]} g5 {[%emt 0:01:53]} 27. Nd6+ {[%emt 0:00:30]} Bxd6 {[%emt 0:00:54]} 28. Rxd6 {[%emt 0:00:01]} Rh1+ {[%emt 0:00:44]} 29. Rd1 {[%emt 0:00:51]} Rh2 {[%emt 0:00:27]} 30. Bf1 {[%emt 0:00:25]} Nf5 {[%emt 0:00:32]} 31. Bxe5 {[%emt 0:01:30]} fxe5 {[%emt 0:00:01]} 32. Kd2 {[%emt 0:00:21]} Rh4 {[%emt 0:01:00]} 33. Kc3 {[%emt 0:00:15]} Ne3 {[%emt 0:00:39]} 34. Re1 {[%emt 0:00:05]} Nxf1 {[%emt 0:00:12]} 35. Rxf1 {[%emt 0:00:01]} Rh2 {[%emt 0:00:05]} 36. Rg1 {[%emt 0:00:12]} Ke6 {[%emt 0:00:04]} 37. Kd3 {[%emt 0:00:01]} Kf5 {[%emt 0:00:19]} 38. Ke3 {[%emt 0:00:07]} c5 {[%emt 0:00:08]} 39. b3 {[%emt 0:00:08]} Ke6 {[%emt 0:00:21]} 40. Ke4 {[%emt 0:00:32]} Rh4+ {[%emt 0:00:02]} 41. Ke3 {[%emt 0:00:01]} Rh2 {[%emt 0:00:02]} 42. Ke4 {[%emt 0:00:00]} Rh4+ {[%emt 0:00:03]} 43. Ke3 {[%emt 0:00:01]} 1/2-1/2

[Event "Chinese League Div-A Rapid 2022"]
[Site "Fuling,Chongqing"]
[Date "2022.09.11"]
[Round "5.10"]
[White "Guo, Weibao"]
[Black "Guo, Qi"]
[Result "0-1"]
[ECO "D04"]
[WhiteElo "1907"]
[BlackElo "2406"]
[Annotator "TA"]
[PlyCount "114"]
[EventDate "2022.09.07"]
[EventType "team-tourn"]
[EventCountry "CHN"]
[SourceTitle "playchess.com"]
[Source "ChessBase"]
[SourceQuality "1"]
[TimeControl "1500+10"]

{[%evp 16,114,-34,-25,-26,-26,-26,-25,-10,-25,0,0,0,0,5,0,-7,-109,-99,-97,-76,-95,-86,-118,-104,-106,-96,-141,-136,-220,-116,-204,-202,-237,-200,-276,-284,-262,-196,-183,-121,-195,-180,-254,-239,-273,-263,-246,-248,-263,-257,-240,-141,-183,-162,-168,-168,-300,-291,-366,-306,-351,-318,-750,-743,-700,-427,-787,-779,-708,-433,-1700,-1537,-1331,-1023,-904,-636,-602,-606,-762,-746,-1005,-734,-759,-705,-2138,-2014,-5800,-5800,-29972,-29973,-29996,-1418,-1421,-1422,-1349,-1296,-1152,-1103,-977,-820]} 1. d4 {[%emt 0:00:03]} d5 {[%emt 0:00:02]} 2. Nf3 {[%emt 0:00:02]} Nf6 {[%emt 0:00:01]} 3. e3 {[%emt 0:00:06]} c5 {[%emt 0:00:22]} 4. b3 {[%emt 0:00:58]} Bg4 {[%emt 0:00:16]} 5. Nbd2 {[%emt 0:01:42]} Nc6 {[%emt 0:00:07]} 6. Bb2 {[%emt 0:00:20]} cxd4 {[%emt 0:00:07]} 7. exd4 {[%emt 0:00:04]} e6 {[%emt 0:00:02]} 8. Bd3 {[%emt 0:00:29]} Bd6 {[%emt 0:00:55]} 9. O-O {[%emt 0:00:11]} Qc7 {[%emt 0:00:02][%cal Od6h2] D04: Colle System.} 10. h3 {[%emt 0:00:12]} Bh5 {[%emt 0:00:01]} 11. a3 {[%emt 0:00:59]} O-O {[%emt 0:00:10][%cal Od6h2] Black has an edge.} 12. c4 {[%emt 0:02:33]} Rad8 {[%emt 0:01:24]} 13. c5 {[%emt 0:00:45]} Bf4 {[%emt 0:00:02]} 14. Qc2 {[%emt 0:01:09] [#]} a5 $146 {[%emt 0:01:33] Prevents b4.} ({Predecessor:} 14... e5 15. dxe5 Nxe5 16. Nxe5 Bxe5 17. b4 Rfe8 18. Rfe1 b6 19. Nb3 Ne4 20. Bxe5 Rxe5 21. cxb6 Qxb6 {1-0 (40) Haussernot,C (2188)-Koseoglu,O (1733) Marmaris 2022}) 15. Rfe1 {[%emt 0:00:54]} b6 {[%emt 0:02:25]} 16. Rad1 {[%emt 0:06:14]} (16. g3 $11 Bxd2 17. Nxd2) 16... bxc5 {[%emt 0:02:53]} 17. Qxc5 {[%emt 0:01:10]} Qb7 {[%emt 0:01:24]} 18. Qb5 {[%emt 0:01:19]} Qa8 {[%emt 0:02:49]} 19. g4 {[%emt 0:01:05]} Rb8 {[%emt 0:00:10]} 20. Qa4 {[%emt 0:01:28]} Bg6 {[%emt 0:00:06]} 21. Bxg6 {[%emt 0:00:17]} hxg6 {[%emt 0:00:04]} 22. Ne5 {[%emt 0:00:28]} (22. Rc1 $17 Rfc8 23. Rc3) 22... Rfc8 {[%emt 0:01:30]} (22... Nxe5 $19 23. dxe5 Bxd2 24. exf6 Bxe1 25. Rxe1 d4 26. fxg7 Rfc8 27. Bxd4 Qf3 28. Qxa5 Qxh3) 23. Ndf3 {[%emt 0:03:40]} (23. Nd3 $17 g5 24. Nxf4 gxf4 25. g5) 23... Nxe5 $19 {[%emt 0:02:14]} 24. Nxe5 {[%emt 0:01:09]} Ne4 {[%emt 0:01:25] Hoping for ...Rc2.} 25. Nd3 {[%emt 0:01:02]} Bd2 {[%emt 0:02:45]} 26. Re2 {[%emt 0:00:31]} Bc3 {[%emt 0:00:01]} 27. Bc1 {[%emt 0:00:20]} Qc6 {[%emt 0:01:58]} ({Black should play} 27... Qa7 $19 28. Bf4 {[#]} Bxd4 $1 29. Bxb8 Rxb8) 28. Qxc6 {[%emt 0:00:20]} (28. Be3 $17) 28... Rxc6 {[%emt 0:00:01]} 29. Ne5 {[%emt 0:00:14]} (29. b4 {might work better.}) 29... Rcc8 {[%emt 0:00:13][%cal Oc3d4,Bc6c8,Bc8c1,Bc1b1,Bb1b4][%mdl 32]} 30. b4 {[%emt 0:00:09]} axb4 {[%emt 0:00:05]} 31. axb4 {[%emt 0:00:01] [#]} Bxd4 {[%emt 0:01:38][%mdl 512]} 32. Rxd4 {[%emt 0:00:02]} Rxc1+ {[%emt 0:00:02]} 33. Kg2 {[%emt 0:00:02]} Rbc8 {[%emt 0:00:26]} (33... g5 $19 {Threatens to win with ...f6.} 34. Nd7 Ra8) 34. Rd3 {[%emt 0:00:37]} Rb1 {[%emt 0:00:06]} 35. f3 {[%emt 0:00:12]} Nd6 {[%emt 0:00:11]} 36. Rd4 {[%emt 0:00:10]} (36. h4 $142) 36... g5 {[%emt 0:00:09]} 37. Ra2 {[%emt 0:00:11]} Nb5 {[%emt 0:00:05]} 38. Rd3 {[%emt 0:00:05]} Rxb4 {[%emt 0:00:05] White must now prevent ...f6.} 39. Kg3 $2 {[%emt 0:00:05]} (39. Rdd2) 39... f6 {[%emt 0:00:50]} 40. Nd7 {[%emt 0:00:06]} Rc7 {[%emt 0:00:08]} 41. Ra8+ {[%emt 0:00:03]} (41. Nb6 $142) 41... Kf7 {[%emt 0:00:02]} 42. Nb6 {[%emt 0:00:26]} Nc3 {[%emt 0:00:16]} 43. Nc8 {[%emt 0:00:16]} (43. Rc8 $142 Rxc8 44. Nxc8 Ne2+ 45. Kf2) 43... Ne2+ {[%emt 0:00:02]} 44. Kf2 {[%emt 0:00:02]} Nf4 {[%emt 0:00:02]} 45. Rd2 {[%emt 0:00:05] Inhibits Rc2.} Nxh3+ {[%emt 0:00:08]} 46. Kg3 {[%emt 0:00:01]} Nf4 {[%emt 0:00:09] Strongly threatening ...Kg6.} 47. Nd6+ {[%emt 0:00:08]} Kg6 {[%emt 0:00:13] ...Rc1 is the strong threat.} 48. Ne8 {[%emt 0:00:21]} Re7 {[%emt 0:00:16]} 49. Nd6 {[%emt 0:00:22]} Rb1 {[%emt 0:00:02] aiming for ...Rc7.} 50. Kh2 {[%emt 0:00:10]} Rc7 {[%emt 0:00:06]} 51. Raa2 {[%emt 0:00:11]} Rcc1 {[%emt 0:00:08] ( -> ...Rh1+)} 52. Kg3 {[%emt 0:00:10]} Rg1+ {[%emt 0:00:02]} 53. Kf2 {[%emt 0:00:01]} Rg2+ {[%emt 0:00:04]} (53... d4 $142 54. Rxd4 Rg2+ 55. Ke3 Re1+ 56. Re2 Rgxe2#) 54. Ke3 {[%emt 0:00:01] Black is clearly winning.} Rb3+ {[%emt 0:00:13]} 55. Kd4 {[%emt 0:00:02]} Rxd2+ {[%emt 0:00:09]} 56. Rxd2 {[%emt 0:00:01]} Rxf3 {[%emt 0:00:04]} 57. Nb5 {[%emt 0:00:20]} Rg3 {[%emt 0:00:04] Weighted Error Value: White=0.74/Black=0.33} 0-1